Cogmind - Beta 11.1 *** ADVENTURER MODE // 2022.10.09 @ 20:02:44 Player: Vilhien Result: Destroyed by as-57066 with Assembled Rifle Performance ------------- Evolutions (0) 0 Regions Visited (2) 400 Robots Destroyed (0) 0 Value Destroyed (10) 10 Prototype IDs (0) 0 Alien Tech Used (0) 0 Bonus (0) 0 TOTAL SCORE: 410 Bonus ------- None Cogmind --------- Core Integrity 0/250 Matter 281/300 Energy 230/250 System Corruption 0% Temperature Cool (0) Movement Core (400) Ox7 Location -10/Mines Parts ------- > --- POWER (1) -------- Ion Engine > --- PROPULSION (2) --- (None) > --- UTILITY (2) ------ Small Storage Unit Medium Storage Unit > --- WEAPON (2) ------- Mining Laser Heavy Hammer > --- INVENTORY (10) --- Light Ion Engine Aluminum Leg Aluminum Leg Disposable Heat Sink Medium Matter Pod (3) Medium Laser Mining Laser Peak State ------------ > --- POWER ------------ Ion Engine > --- PROPULSION ------- Light Treads Light Treads > --- UTILITY ---------- Small Storage Unit Medium Storage Unit > --- WEAPON ----------- Improved Light Cannon Heavy Hammer > --- INVENTORY -------- Light Ion Engine Aluminum Leg Aluminum Leg Disposable Heat Sink Medium Matter Pod Medium Laser Mining Laser Mining Laser [Rating: 9] Favorites ----------- Power Ion Engine Engine Ion Engine Propulsion Light Treads Treads Light Treads Utility Small Storage Unit Storage Small Storage Unit Weapon Assault Rifle Energy Gun Medium Laser Ballistic Gun Assault Rifle Ballistic Cannon Improved Light Cannon Impact Weapon Heavy Hammer Build | -11 -10 -10 ------- Run | Scr Mat Min Slots Evolved . | . . . Power . | . . . Propulsion . | . . . Utility . | . . . Weapon . | . . . Parts Attached 13 | 9 1 3 Power 1 | 1 . . Engine 1 | 1 . . Core . | . . . Reactor . | . . . Propulsion 2 | 2 . . Treads 2 | 2 . . Leg . | . . . Wheel . | . . . Hover . | . . . Flight . | . . . Utility 3 | 2 1 . Device . | . . . Storage 3 | 2 1 . Processor . | . . . Hackware . | . . . Protection . | . . . Artifact . | . . . Weapon 7 | 4 . 3 Energy Gun 3 | 3 . . Energy Cannon . | . . . Ballistic Gun 1 | 1 . . Ballistic Cannon 1 | . . 1 Launcher . | . . . Special Weapon 1 | . . 1 Impact Weapon 1 | . . 1 Slashing Weapon . | . . . Piercing Weapon . | . . . Special Melee Weapon . | . . . Unidentified Prototypes . | . . . Parts Lost 5 | . . 5 Power . | . . . Propulsion 2 | . . 2 Utility . | . . . Weapon 3 | . . 3 Highest Loss Streak 5 | . . 5 To Critical Strikes . | . . . Average Slot Usage (%) 99 | . 99 97 Engine 14 | . 14 14 Treads 27 | . 28 25 Storage 27 | . 27 28 Energy Gun 13 | . 14 9 Ballistic Gun 13 | . 14 9 Naked Turns . | . . . Heaviest Build 27 | 19 24 27 Greatest Support 40 | 3 40 40 Greatest Overweight (x) 8 | 6 6 8 Average Overweight (x) 3 | 4 . . Largest Inventory Capacity 10 | 8 10 10 Average Capacity 8 | 7 9 10 Most Carried 10 | 5 10 10 Average Carried 4 | 3 6 9 Final Capacity 10 | 8 10 10 Final Carried 10 | 4 10 7 Class Distribution -------------------- 100% | Mutant Dominant Class ---------------- Mutant | -10/Materials Mutant | -10/Mines Resources | -11 -10 -10 ----------- Run | Scr Mat Min Matter Collected 299 | 299 . . Remotely . | . . . Salvage Created 17 | 17 . . Parts . | . . . Haulers Intercepted . | . . . Recyclers Shooed . | . . . Parts Field Recycled . | . . . Retrieved Matter . | . . . Parts Self-Destructed . | . . . Prevented . | . . . Kills | -11 -10 -10 ------- Run | Scr Mat Min Combat Hostiles Destroyed 1 | 1 . . Guns 1 | 1 . . Classes Destroyed 1 | 1 . . Assembled 1 | 1 . . Best Kill Streak 1 | 1 . . Combat Bots Only 1 | 1 . . Max Kills in Single Turn 1 | 1 . . Gunslinging . | . . . Exploded . | . . . Melee . | . . . Uniques/NPCs Destroyed . | . . . Combat | -11 -10 -10 -------- Run | Scr Mat Min Damage Taken 1171 | 40 17 1114 Core 256 | 28 . 228 Absorbed by Shields . | . . . Core Remaining (%) 88 | 88 . . Volleys Fired 5 | 3 1 1 Largest 2 | 2 2 1 Hottest 60 | 60 60 39 Shots Fired 9 | 6 2 1 Gun 8 | 6 2 . Cannon 1 | . . 1 Launcher . | . . . Special . | . . . Kinetic 5 | 3 1 1 Thermal . | . . . Explosive . | . . . Electromagnetic 4 | 3 1 . Robot Hit Streak 2 | 1 1 2 Robot Miss Streak 2 | 2 1 . Penetration Max . | . . . Secondary Targets . | . . . Shots Hit Robots 4 | 2 1 1 Core Hits 2 | 2 . . Critical Kills . | . . . Critical Parts Destroyed . | . . . Critical Strikes . | . . . Melee Attacks . | . . . Impact . | . . . Slashing . | . . . Piercing . | . . . Sneak Attacks . | . . . Combat Hostiles . | . . . Follow-up Attacks . | . . . Damage Inflicted 154 | 37 96 21 Guns 59 | 37 22 . Cannons 21 | . . 21 Explosions 70 | . 70 . Melee . | . . . Ramming 4 | . 4 . Kinetic 47 | 26 . 21 Thermal 70 | . 70 . Explosive . | . . . Electromagnetic 33 | 11 22 . Impact . | . . . Slashing . | . . . Piercing . | . . . Highest Corruption . | . . . Average Corruption . | . . . Corruption Purged . | . . . Corruption Blocked . | . . . Overload Shots . | . . . Overflow Damage . | . . . Projectiles . | . . . Explosions . | . . . Melee . | . . . Knockbacks . | . . . Impact . | . . . Kinetic . | . . . Secondary . | . . . Self-Inflicted Damage 17 | . 17 . Shots 1 | . 1 . Rammed 2 | . 2 . Targets Rammed 2 | . 2 . Kicked . | . . . Crushed . | . . . Highest Temperature 12 | . 12 . Average Temperature 12 | . 12 . Received Heat Transfer 58 | . . 58 Siege Activations . | . . . Robots Corrupted . | . . . Combat Hostiles . | . . . Parts Fried . | . . . Impact Corruptions . | . . . Robots Melted . | . . . Combat Hostiles . | . . . Parts Melted . | . . . Heat Transferred 100 | . 100 . Parts Sabotaged . | . . . Parts Stolen . | . . . Parts Stripped . | . . . Power Chain Reactions 1 | . 1 . Missiles Intercepted . | . . . Alert | -11 -10 -10 ------- Run | Scr Mat Min Peak Influence 51 | . 51 46 Initial 16 | . . 16 Average 2 | . 21 25 Maximum Alert Level . | . . . Low Security (%) 100 | 100 100 100 Level 1 . | . . . Level 2 . | . . . Level 3 . | . . . Level 4 . | . . . Level 5 . | . . . High Security . | . . . Max Security . | . . . Squads Dispatched . | . . . Investigation . | . . . Extermination . | . . . Reinforcement . | . . . Assault . | . . . Garrison . | . . . Intercept . | . . . Searches Triggered . | . . . Construction Impeded . | . . . Haulers Reinforced . | . . . Active Scanning Responses . | . . . Cargo Convoy Interrupts . | . . . Stealth | -11 -10 -10 --------- Run | Scr Mat Min Distress Signals . | . . . Communications Jammed . | . . . Distress Signals . | . . . Times Spotted 13 | 1 1 11 Peak Tracking Total 10 | 1 1 10 Tactical Retreats . | . . . Traps | -11 -10 -10 ------- Run | Scr Mat Min Traps Triggered . | . . . Indirectly . | . . . Trap Hack Attempts . | . . . Triggered . | . . . Disarmed . | . . . Reprogrammed . | . . . Reused . | . . . Traps Extracted . | . . . Installed . | . . . Triggered . | . . . Machines | -11 -10 -10 ---------- Run | Scr Mat Min Machines Disabled 1 | . 1 . Max in Single Turn 1 | . 1 . Machines Sabotaged . | . . . Garrisons Compromised . | . . . Overloaded Fab Kills . | . . . Hacking | -11 -10 -10 --------- Run | Scr Mat Min Machines Accessed 2 | . 2 . Terminals 2 | . 2 . Fabricators . | . . . Repair Stations . | . . . Recycling Units . | . . . Scanalyzers . | . . . Garrison Access . | . . . Total Hacks 6 | . 6 . Successful 5 | . 5 . Failed 1 | . 1 . Catastrophic . | . . . Database Lockouts . | . . . Manual . | . . . Terminals 6 | . 6 . Fabricators . | . . . Repair Stations . | . . . Recycling Units . | . . . Scanalyzers . | . . . Garrison Access . | . . . Terminal Hacks 5 | . 5 . Record 1 | . 1 . Emergency Access Points 1 | . 1 . Locate Traps 1 | . 1 . Surveillance Status 1 | . 1 . Reinforcement Status 1 | . 1 . Fabricator Hacks . | . . . Repair Station Hacks . | . . . Recycling Unit Hacks . | . . . Scanalyzer . | . . . Garrison Access Hacks . | . . . Unauthorized Hacks . | . . . Terminals . | . . . Fabricators . | . . . Repair Stations . | . . . Recycling Units . | . . . Scanalyzers . | . . . Garrison Access . | . . . Data Cores Recovered . | . . . Used . | . . . Hacking Detections . | . . . Full Trace Events . | . . . Feedback Events . | . . . Feedback Blocked . | . . . Robot Schematics Acquired . | . . . Robots Built . | . . . Authchips . | . . . Time . | . . . Total Robot Build Rating . | . . . Part Schematics Acquired . | . . . Parts Built . | . . . Authchips . | . . . Time . | . . . Total Part Build Rating . | . . . Parts Repaired . | . . . Time . | . . . Parts Recycled . | . . . Recycled Matter . | . . . Retrieved Matter . | . . . Retrieved Components . | . . . Parts Scanalyzed . | . . . Part Schematics Acquired . | . . . Parts Damaged . | . . . Bothacking | -11 -10 -10 ------------ Run | Scr Mat Min Used RIF Installer . | . . . Robots Hacked . | . . . Non-combat . | . . . Combat . | . . . Robot Hacks Applied . | . . . Relay Couplers Released . | . . . Fabnet Peak Effective % . | . . . Robots Rewired . | . . . Allies Hacked . | . . . Hacks Repelled . | . . . Allies | -11 -10 -10 -------- Run | Scr Mat Min Total Allies . | . . . Largest Group . | . . . Highest-Rated Group . | . . . Highest-Rated Ally . | . . . Total Orders . | . . . Ally Attacks . | . . . Total Damage . | . . . Kills . | . . . Allies Corrupted . | . . . Allies Melted . | . . . Intel | -11 -10 -10 ------- Run | Scr Mat Min Robot Analysis Total . | . . . Derelict Logs Recovered . | . . . Drone Launches . | . . . Drone Recoveries . | . . . Exploration | -11 -10 -10 ------------- Run | Scr Mat Min Turns Passed 3125 | 2799 260 66 Spaces Moved 1277 | 1109 133 35 Core 1127 | 1109 17 1 Treads 150 | . 116 34 Legs . | . . . Wheels . | . . . Hover . | . . . Flight . | . . . Fastest Speed 50 | 50 160 160 Average Speed 241 | 250 184 175 Slowest Speed 450 | 350 350 450 Overloaded Moves . | . . . Propulsion Burnouts . | . . . Robots Hopped . | . . . Cave-ins Triggered 1 | . . 1 Exploration Rate (%) 38 | 73 30 12 Regions Visited 2 Branch Regions 1 Pre-discovered Areas . | . . . Known Exits Taken . | . . . Unknown Exits Taken 2 | 1 1 . Scrap Searched . | . . . Spaces Dug . | . . . Terrain Destroyed 7 | . 7 . Melee . | . . . Projectile . | . . . AOE 7 | . 7 . Terrain Rammed . | . . . Walls Destroyed . | . . . Machines Disabled . | . . . Actions | -11 -10 -10 --------- Run | Scr Mat Min Total 1315 | 1131 145 39 Wait . | . . . Move 1275 | 1108 132 35 Hop . | . . . Pick Up 18 | 11 7 . Fast Attach 1 | . 1 . Attach 10 | 7 . 3 Detach . | . . . Swap 2 | 2 . . Drop 2 | . 2 . Fire 5 | 3 1 1 Melee . | . . . Ram . | . . . Kick . | . . . Crush 2 | . 2 . Escape Stasis . | . . . Rewire . | . . . Trap . | . . . Miscellaneous . | . . . Route ------- -11/Scrapyard -10/Materials -10/Mines History --------- Turn | Location | Event 10 | -11/Scrapyard | Discovered new exit (range 14) 2104 | -11/Scrapyard | Assembled infested the area 2800 | -11/Scrapyard | Entered Materials 2801 | -10/Materials | Build established: Mutant 3018 | -10/Materials | Discovered new exit (range 16) 3060 | -10/Materials | Entered Mines 3061 | -10/Mines | Assembled infested the area 3066 | -10/Mines | Assisted by a Guerilla fighting off Assembled 3101 | -10/Mines | Core integrity fell below 50% 3121 | -10/Mines | Crushed by falling debris 3121 | -10/Mines | Core integrity fell below 20% 3126 | -10/Mines | Destroyed by as-57066 with Assembled Rifle Last Messages --------------- 03105_ K-01 Serf collects debris. 03106_ Assault Rifle destroyed. 03108_ K-01 Serf collects debris. 03109_ The unstable cave ceiling collapses. 03109_ K-01 Serf collects debris. 03110_ The unstable cave ceiling collapses. 03110_ as-24536 sneak attacks. 03110_ K-01 Serf destroyed. 03111_ The unstable cave ceiling collapses. 03112_ K-01 Serf collects debris. 03114_ Lgt. Treads destroyed. 03115_ The unstable cave ceiling collapses. 03119_ K-01 Serf collects debris. 03120_ The unstable cave ceiling collapses. 03121_ Crushed by falling debris. [Achievement: Unlikely Earthworm] 03121_ Lgt. Treads destroyed. 03121_ The unstable cave ceiling collapses. 03122_ K-01 Serf collects debris. 03125_ Imp. Light Cannon destroyed. Map ----- +----------------------------------------------------+ | ????????????????????????????????????????????? | | ????????????????????????????????????????????? | | ????????????????????????????????????????????? | | ????????????????????????????????????????????? | | ????????????????????????????????????????????? | | ????????????????????????????????????????????? | | ????????????????????????????????????????????? | | ??????????????????#####?????????????????????? | | ??????????????????# ##????????????????????? | | ???????????? ?????# #####????????????????? | | ????????????# ???## ##???????????????? | | ??????????### ### $ #???????????????? | | ????????? #???????????????? | | ??????????? ##??????????????? | | ??????????????? r % #####???????????? | | ??????????????????# # # % "##??????????? | | ??????????????????# [%= !!#??????????? | | ??????????????????## [! [|#??????????? | | ??????????????????# # # #??????????? | | ??????????????????# # # # ##?????????? | | ?????????????????## k # #?????????? | | ????????????????## #?????????? | | ????????????????# % ##????????? | | ???????????????## # % #????????? | | ???????????????# a # ##????????? | | ???????????????# # #@ #?????????? | | ??????????????## # # #?????????? | | ??????????????# # # ## aa #?????????? | | ??????????????# # ## ]#####?????????? | | ??????????????# ##?#%#?????????????? | | ??????????????## # # #???!#?????????????? | | ???????????????# ##???##?????????????? | | ???????????????# ##???????????????????? | | ???????????????#### # ##????????????????????? | | ??????????????????#####?????????????????????? | | ????????????????????????????????????????????? | | ????????????????????????????????????????????? | | ????????????????????????????????????????????? | | ????????????????????????????????????????????? | | ????????????????????????????????????????????? | | ????????????????????????????????????????????? | | ????????????????????????????????????????????? | | ????????????????????????????????????????????? | | ????????????????????????????????????????????? | | ????????????????????????????????????????????? | | ????????????????????????????????????????????? | | ????????????????????????????????????????????? | | ????????????????????????????????????????????? | | ????????????????????????????????????????????? | | ????????????????????????????????????????????? | +----------------------------------------------------+ Best States ------------- Heat Dissipation 25 Energy Generation 10 Energy Capacity 250 Matter Stores 300 Matter Capacity 300 Sight Range 16 Terrain Scan Density 10 Resistance: KI 20 Resistance: TH 20 Resistance: EX 20 Resistance: EM 20 Resistance: I 20 Resistance: S 20 Resistance: P 20 Evasion (%) 40 Recoil Reduction 2 Offensive Hacking 10 Item Schematics ----------------- None Robot Schematics ------------------ None Fabricated ------------ Nothing Alien Tech Used ----------------- None Achievements -------------- Curiosity Killed The Cat Unlikely Earthworm Challenges ------------ None Game ------ Seed SpliceAssemblyImmobilizer Manual? 0 Play Time 00:25:01 Cumulative 24.8 hours Start 2022.10.08 @ 17:23:39 End 2022.10.09 @ 20:02:44 Sessions 1 Manual Loads 0 Difficulty Adventurer Special Mode None Game No. 55 Rogue 51 Adventurer 4 Explorer 0 Win Type - Total 0 Types 0/0/0/0/0/0/0/0/0 Lore% 12 Gallery% 23 Achievement% 4 Wizard Run 0 Options --------- ASCII 0 Keyboard 0 Movement Mouse Keybinds 0 Fullscreen 1 Font 12/Smallcaps Map View 83x54 Tactical HUD 1 Map Filters NONE Filters NONE Steam 1 RUN: b0108a7e-988c-443a-be83-a6c1f1abff43